bitfinex-derivatives/quotes_SOLF0:USTF0_20251208
["timestamp","ask_amount","ask_price","bid_price","bid_amount"]
[1765214606953,3.28905691,135.68,135.66,3.0417039]
[1765214607561,3.28905691,135.68,135.66,9.6759039]
[1765214608360,3.28905691,135.68,135.66,3.0417039]
[1765214610760,3.28905691,135.68,135.65,6.68643172]
[1765214610961,3.28905691,135.68,135.65,9.72813562]
[1765214611670,3.28905691,135.68,135.65,0.05193172]
[1765214611870,3.28905691,135.68,135.65,3.09363562]
[1765214612866,0.04905691,135.68,135.65,3.09363562]
[1765214613367,3.28905691,135.68,135.66,6.6343]
[1765214614168,0.04905691,135.68,135.67,3.0417039]
[1765214620780,3.28905691,135.68,135.66,6.6343]
[1765214621071,0.04905691,135.68,135.67,3.0417039]
[1765214624968,0.04905691,135.68,135.67,65.7017039]
[1765214625675,3.28905691,135.68,135.65,0.05193172]
[1765214625878,3.28905691,135.68,135.65,62.71193172]
[1765214625879,3.24,135.67,135.65,62.71193172]
[1765214627777,0.04905691,135.68,135.65,65.75363562]
[1765214627978,3.28905691,135.68,135.65,65.75363562]
[1765214629476,3.28905691,135.68,135.66,6.6341]
[1765214630382,5.48185307,135.67,135.66,6.6341]
[1765214630674,3.31,135.66,135.65,62.71193172]
[1765214631584,8.79262725,135.66,135.65,62.71193172]
[1765214631789,5.48262725,135.66,135.65,62.71193172]
[1765214632178,3.31,135.67,135.65,62.71193172]
[1765214632384,3.31,135.67,135.65,69.34663172]
[1765214632691,0.04905691,135.68,135.65,62.71193172]
[1765214633374,0.04905691,135.68,135.66,6.6342]
[1765214635478,0.04905691,135.68,135.66,9.6759039]
[1765214636488,3.35905691,135.68,135.66,6.6342]
[1765214637187,0.04905691,135.68,135.66,6.6342]
[1765214638082,0.04905691,135.68,135.66,69.3142]
[1765214638282,0.04905691,135.68,135.66,62.68]
[1765214638480,3.35905691,135.68,135.66,62.68]
[1765214638782,8.79013935,135.67,135.65,0.05193172]
[1765214638988,5.48003955,135.66,135.65,0.05193172]
[1765214640585,3.35905691,135.68,135.65,6.68663172]
[1765214640778,5.4772958,135.67,135.65,6.68663172]
[1765214640983,3.35905691,135.68,135.65,6.68663172]
[1765214641189,5.47482709,135.67,135.65,9.72833562]
[1765214641488,0.04905691,135.68,135.66,6.6341]
[1765214644184,3.28905691,135.68,135.66,6.6341]
[1765214644895,0.04905691,135.68,135.66,6.6341]
[1765214645794,0.04905691,135.68,135.66,69.3141]
[1765214647692,0.04905691,135.68,135.67,6.6338]
[1765214647891,5.5258537,135.68,135.67,6.6338]
[1765214648501,0.04905691,135.68,135.67,9.6755039]
[1765214650507,3.28905691,135.68,135.67,3.0417039]
[1765214650710,3.28905691,135.68,135.67,62.68]
[1765214651506,5.55406359,135.68,135.67,62.68]
[1765214651898,8.79406359,135.68,135.67,62.68]
[1765214652098,3.24,135.67,135.65,0.05193172]
[1765214652302,3.28905691,135.68,135.65,6.68663172]
[1765214652606,0.04905691,135.68,135.65,0.05193172]
[1765214652906,0.04905691,135.68,135.65,4.80385459]
[1765214653508,0.04905691,135.68,135.66,6.6342]
[1765214654200,0.04905691,135.68,135.67,4.75192287]
[1765214655007,5.50419358,135.72,135.67,109.42412287]
[1765214655208,8.29967678,135.74,135.69,4.75192287]
[1765214655399,5.50316198,135.73,135.69,4.75192287]
[1765214655601,3.24,135.74,135.69,4.75192287]
[1765214655602,5.50316198,135.72,135.69,4.75192287]
[1765214655806,6.80926766,135.75,135.69,4.75192287]
[1765214656007,0.05336329,135.73,135.71,0.05335797]
[1765214656201,5.5035053,135.72,135.71,0.05335797]
[1765214656715,5.5035053,135.72,135.71,6.68505797]
[1765214657505,3.24,135.71,135.68,49.4]
[1765214657706,103.1787,135.69,135.58,0.15]
[1765214657912,103.1787,135.69,135.59,3.16]
[1765214657913,6.80926766,135.66,135.59,3.16]
[1765214658104,10.55486181,135.65,135.59,3.16]
[1765214658309,5.49992837,135.64,135.58,3.29]
[1765214658509,10.55681419,135.63,135.58,3.29]
[1765214658711,9.04845536,135.66,135.58,3.29]
[1765214658712,10.61061151,135.62,135.6,0.04795409]
[1765214659012,5.49992837,135.61,135.6,0.04795409]
[1765214659713,5.598617,135.61,135.6,0.04795409]
[1765214661114,0.05379732,135.62,135.6,3.33795409]
[1765214663427,2.81000067,135.66,135.61,3.29]
[1765214663630,5.47385953,135.71,135.62,3.29]
[1765214663824,5.47385953,135.72,135.63,3.29]
[1765214664324,5.47385953,135.71,135.64,3.29]
[1765214664532,0.05515233,135.69,135.66,3.34160985]
[1765214666226,0.05515233,135.69,135.66,0.05160985]
[1765214666429,0.05515233,135.69,135.57,3.29]
[1765214666430,103.1942,135.67,135.57,3.29]
[1765214666626,177.2347523,135.67,135.57,3.29]
[1765214666827,6.6351,135.65,135.57,3.29]
[1765214667033,110.01086766,135.66,135.57,3.29]
[1765214667034,108.67545953,135.66,135.57,3.29]
[1765214667331,0.05670227,135.63,135.6,0.05177826]
[1765214672038,6.69270227,135.63,135.6,0.05177826]
[1765214672737,0.05670227,135.63,135.6,0.05177826]
[1765214672932,61.0,135.62,135.6,0.05177826]
[1765214674539,67.6364,135.62,135.6,0.05177826]
[1765214675041,130.3364,135.62,135.6,0.05177826]
[1765214675535,135.88998238,135.62,135.6,0.05177826]
[1765214675734,10.75338371,135.63,135.6,3.34177826]
[1765214675940,10.75429635,135.63,135.6,3.34177826]
[1765214676241,6.69260227,135.63,135.6,0.05177826]
[1765214679143,6.6363,135.62,135.6,0.05177826]
[1765214680133,73.24709729,135.63,135.6,0.05177826]
[1765214680338,67.69260227,135.63,135.6,3.34177826]
[1765214680645,5.55449502,135.62,135.6,0.05177826]
[1765214680845,5.55449502,135.61,135.6,0.05177826]
[1765214681343,5.55449502,135.61,135.6,3.34177826]
[1765214681539,61.05670227,135.63,135.6,3.34177826]
[1765214681845,5.92315867,135.62,135.6,3.34177826]
[1765214682043,61.05670227,135.63,135.6,3.34177826]
[1765214682245,5.92314081,135.62,135.6,3.34177826]
[1765214682445,61.05670227,135.63,135.6,3.34177826]
[1765214682638,5.92302423,135.62,135.6,3.34177826]
[1765214682838,61.05670227,135.63,135.6,3.34177826]
[1765214683032,5.92307958,135.62,135.6,3.34177826]
[1765214683235,61.05670227,135.63,135.6,3.34177826]
[1765214683444,5.92174881,135.62,135.6,3.34177826]
[1765214684046,5.92174881,135.62,135.6,0.05177826]
[1765214684746,5.92174881,135.62,135.6,3.34177826]
[1765214685142,12.55814881,135.62,135.6,0.05177826]
[1765214685447,6.6364,135.62,135.6,0.05177826]
[1765214685649,61.05670227,135.63,135.6,0.05177826]
[1765214685850,5.92337296,135.62,135.6,0.05177826]
[1765214686051,61.05670227,135.63,135.6,0.05177826]
[1765214686245,5.92505588,135.62,135.6,0.05177826]
[1765214686445,67.69250227,135.63,135.6,0.05177826]
[1765214686652,5.92473529,135.62,135.6,0.05177826]
[1765214686850,67.69250227,135.63,135.6,0.05177826]
[1765214687051,5.92484202,135.62,135.6,0.05177826]
[1765214687253,67.69250227,135.63,135.6,0.05177826]
[1765214687452,12.56120572,135.62,135.6,0.05177826]
[1765214687654,6.6363,135.62,135.6,0.05177826]
[1765214690853,61.05670227,135.63,135.6,3.15177826]
[1765214691041,5.92832985,135.62,135.6,3.15177826]
[1765214691241,61.05670227,135.63,135.6,3.15177826]
[1765214691741,0.05670227,135.63,135.6,3.15177826]
[1765214695457,0.05670227,135.63,135.61,6.6367]
[1765214695658,0.05670227,135.63,135.62,3.1]
[1765214697555,0.05670227,135.63,135.6,0.05177826]
[1765214697748,5.92639901,135.62,135.6,3.15177826]
[1765214697948,0.05670227,135.63,135.6,3.15177826]
[1765214698746,5.92733841,135.62,135.6,0.05177826]
[1765214698943,5.92733841,135.61,135.6,0.05177826]
[1765214700357,11.07043747,135.61,135.6,0.05177826]
[1765214700548,5.92733841,135.61,135.6,0.05177826]
[1765214701262,18.25805037,135.61,135.6,0.05177826]
[1765214702854,6.6374,135.6,135.56,3.08]
[1765214703054,6.79606969,135.58,135.53,3.08]
[1765214703254,11.48760434,135.57,135.5,4.75884921]
[1765214703455,18.28367403,135.56,135.5,3.08]
[1765214703655,11.48760434,135.55,135.5,3.08]
[1765214703857,5.97803717,135.54,135.5,3.08]
[1765214704165,5.92733841,135.53,135.5,3.08]
[1765214704452,5.93679434,135.52,135.5,3.08]
[1765214704653,0.05069876,135.54,135.5,3.08]
[1765214704861,5.93679167,135.53,135.5,3.08]
[1765214705045,5.93679167,135.52,135.5,3.08]
[1765214705245,0.05069876,135.54,135.5,3.08]
[1765214705446,5.93310722,135.53,135.5,3.08]
[1765214705659,0.05069876,135.54,135.5,3.08]
[1765214705854,5.93234986,135.53,135.5,3.08]
[1765214706160,0.05069876,135.54,135.48,14.48164921]
[1765214706364,5.93153281,135.53,135.49,3.08]
[1765214706662,6.69109876,135.54,135.49,3.08]
[1765214706857,5.93172293,135.53,135.49,3.08]
[1765214707055,6.69109876,135.54,135.49,3.08]
[1765214707254,5.93115825,135.53,135.49,3.08]
[1765214707453,6.69109876,135.54,135.49,3.08]
[1765214707654,5.92851852,135.53,135.49,3.08]
[1765214707859,6.69109876,135.54,135.49,3.08]
[1765214708060,5.92852045,135.53,135.49,3.08]
[1765214708258,6.69109876,135.54,135.49,3.08]
[1765214708557,5.92603131,135.53,135.49,3.08]
[1765214708754,6.69109876,135.54,135.49,3.08]
[1765214708959,5.92583343,135.53,135.49,3.08]
[1765214709158,5.92583343,135.52,135.49,3.08]
[1765214709360,6.69109876,135.54,135.49,3.08]
[1765214709663,12.56606358,135.53,135.46,9.7241]
[1765214709956,0.04776372,135.51,135.46,9.7241]
[1765214710166,0.04776372,135.51,135.43,103.3727]
[1765214710167,5.927268,135.5,135.43,3.08]
[1765214710356,5.927268,135.49,135.43,3.08]
[1765214710665,5.98280024,135.48,135.43,3.08]
[1765214710871,0.05553224,135.48,135.43,3.08]
[1765214712068,0.05553224,135.48,135.44,9.725]
[1765214712657,0.05553224,135.48,135.44,3.08]
[1765214712854,0.05553224,135.48,135.4,6.78212009]
[1765214713068,0.05553224,135.48,135.41,6.6463]
[1765214713069,5.73489234,135.47,135.41,6.6463]
[1765214713266,0.05553224,135.48,135.41,9.7263]
[1765214713462,5.72857093,135.47,135.41,3.08]
[1765214713660,5.72857093,135.46,135.41,3.08]
[1765214713958,0.05488099,135.45,135.41,3.08]
[1765214714558,0.05488099,135.45,135.43,3.08]
[1765214714764,0.05488099,135.45,135.41,3.08]
[1765214716269,0.05488099,135.45,135.42,3.08]
[1765214716570,0.05488099,135.45,135.43,3.08]
[1765214716969,5.71707942,135.5,135.46,3.08]
[1765214717169,5.71707942,135.52,135.46,3.08]
[1765214717369,5.71707942,135.51,135.46,3.08]
[1765214717673,5.71707942,135.52,135.46,3.08]
[1765214717868,0.04945871,135.5,135.48,0.05401835]
[1765214718173,5.71707942,135.53,135.49,2.99]
[1765214718470,5.71707942,135.53,135.48,103.39211835]
[1765214718471,5.71707942,135.56,135.5,2.99]
[1765214719167,0.05466999,135.54,135.52,3.04554726]
[1765214721569,0.05466999,135.54,135.52,0.05554726]
[1765214721863,5.77174941,135.54,135.52,0.05554726]
[1765214722060,0.05466999,135.54,135.52,0.05554726]
[1765214722259,5.77174941,135.54,135.52,0.05554726]
[1765214722459,6.69506999,135.54,135.52,0.05554726]
[1765214722662,12.41214941,135.54,135.52,0.05554726]
[1765214722863,6.69506999,135.54,135.52,0.05554726]
[1765214723070,12.41214941,135.54,135.52,0.05554726]
[1765214723268,6.69506999,135.54,135.52,0.05554726]
[1765214723466,12.41214941,135.54,135.52,0.05554726]
[1765214723668,66.71707942,135.53,135.52,0.05554726]
[1765214724065,74.83817942,135.53,135.46,2.99]
[1765214724270,73.35817942,135.53,135.46,2.99]
[1765214724571,73.35817942,135.53,135.45,62.76]
[1765214724572,66.71707942,135.53,135.47,2.99]
[1765214724967,0.04763314,135.51,135.49,0.04879244]
[1765214725674,0.04763314,135.51,135.47,2.99]
[1765214726362,0.04763314,135.51,135.46,6.6438]
[1765214726567,0.04763314,135.51,135.46,2.99]
[1765214727168,0.04763314,135.51,135.44,6.6448]
[1765214727376,0.04766221,135.49,135.45,2.99]
[1765214729075,0.04766221,135.49,135.46,2.99]
[1765214730577,0.04766221,135.49,135.48,2.99]
[1765214731379,2.39707942,135.55,135.51,2.99]
[1765214731579,61.0,135.57,135.52,2.99]
[1765214732370,0.0475652,135.56,135.54,2.99]
[1765214733171,67.79606969,135.61,135.55,2.99]
[1765214733172,67.637,135.61,135.55,2.99]
[1765214734177,0.05050227,135.59,135.57,3.03801017]
[1765214735879,61.0,135.65,135.58,2.99]
[1765214736076,67.635,135.65,135.59,2.99]
[1765214736280,61.0,135.65,135.59,2.99]
[1765214736482,6.79606969,135.66,135.59,2.99]
[1765214736884,0.04714806,135.64,135.61,3.04025564]
[1765214739484,0.04714806,135.64,135.61,9.67675564]
[1765214739673,0.04714806,135.64,135.62,2.99]
[1765214744083,0.04714806,135.64,135.61,3.04025564]
[1765214748589,5.66938295,135.63,135.61,0.05025564]
[1765214748789,5.66938295,135.62,135.61,0.05025564]
[1765214749781,6.637,135.61,135.56,3.17]
[1765214749981,5.66938295,135.61,135.54,3.17]
[1765214750685,6.6374,135.6,135.55,3.17]
[1765214750883,0.05168778,135.59,135.56,3.22272813]
[1765214751984,0.05168778,135.59,135.56,0.05272813]
[1765214752189,6.68948778,135.59,135.56,3.22272813]
[1765214753096,0.05168778,135.59,135.56,3.22272813]
[1765214757594,0.05168778,135.59,135.56,9.86182813]
[1765214757992,0.05168778,135.59,135.57,3.17]
[1765214759696,0.00168778,135.59,135.58,3.27]
[1765214759905,5.66938295,135.65,135.58,3.27]
[1765214760202,5.66938295,135.64,135.61,3.27]
[1765214760390,61.0,135.66,135.61,3.27]
[1765214760594,5.66874398,135.65,135.61,3.27]
[1765214760797,5.72291688,135.64,135.62,3.32536628]
[1765214760995,0.0541729,135.64,135.62,3.32536628]
[1765214762300,5.66981758,135.67,135.63,3.27]
[1765214762506,5.66981758,135.69,135.63,3.27]
[1765214762697,5.66981758,135.68,135.65,3.27]
[1765214762897,5.66981758,135.69,135.65,3.27]
[1765214763097,5.66981758,135.68,135.65,3.27]
[1765214763312,0.05147153,135.68,135.65,3.32472956]
[1765214763500,5.72128911,135.68,135.65,3.32472956]
[1765214763699,0.05147153,135.68,135.65,3.32472956]
[1765214763900,5.72128911,135.68,135.65,3.32472956]
[1765214764100,0.05147153,135.68,135.65,3.32472956]
[1765214766310,5.6707083,135.67,135.65,0.05472956]
[1765214766511,5.6707083,135.66,135.65,0.05472956]
[1765214768307,5.6707083,135.66,135.65,3.32472956]
[1765214768513,5.6707083,135.67,135.65,3.32472956]
[1765214768706,0.05147153,135.68,135.65,3.32472956]
[1765214768903,5.67265262,135.67,135.65,3.32472956]
[1765214769104,0.05147153,135.68,135.65,3.32472956]
[1765214769300,5.67313054,135.67,135.65,0.05472956]
[1765214769508,6.68507153,135.68,135.65,0.05472956]
[1765214769708,5.67418482,135.67,135.65,0.05472956]
[1765214770007,5.67418482,135.66,135.65,0.05472956]
[1765214770906,5.67418482,135.66,135.65,3.32472956]
[1765214771106,6.68507153,135.68,135.65,3.32472956]
[1765214771303,5.6383053,135.67,135.65,3.32472956]
[1765214771508,0.05147153,135.68,135.65,3.32472956]
[1765214771816,5.63866081,135.67,135.65,3.32472956]
[1765214772014,0.05147153,135.68,135.65,3.32472956]
[1765214772215,5.63866169,135.67,135.65,3.32472956]
[1765214772415,0.05147153,135.68,135.65,3.32472956]
[1765214772612,5.64169974,135.67,135.65,3.32472956]
[1765214772919,0.05147153,135.68,135.65,3.32472956]
[1765214773213,5.64415844,135.67,135.65,0.05472956]
[1765214773417,5.64415844,135.66,135.65,0.05472956]
[1765214775716,5.64415844,135.66,135.6,3.27]
[1765214775915,12.44022813,135.65,135.58,6.6378]
[1765214776216,5.64415844,135.64,135.58,9.9078]
[1765214776409,12.28025844,135.63,135.59,3.27]
[1765214776613,5.64415844,135.62,135.59,3.27]
[1765214776813,0.05605904,135.62,135.59,3.31842467]
[1765214778319,5.65786392,135.61,135.59,3.31842467]
[1765214778621,0.05605904,135.62,135.59,3.31842467]
[1765214778823,5.65786239,135.61,135.59,3.31842467]
[1765214779028,0.05605904,135.62,135.59,3.31842467]
[1765214779215,5.65817054,135.61,135.59,3.31842467]
[1765214779415,0.05605904,135.62,135.59,3.31842467]
[1765214779616,5.65861126,135.61,135.59,3.31842467]
[1765214779817,0.05605904,135.62,135.59,3.31842467]
[1765214780728,0.05605904,135.62,135.59,9.95602467]
[1765214780931,0.05605904,135.62,135.6,3.31]
[1765214781517,6.79606969,135.65,135.61,3.31]
[1765214781718,5.65978901,135.64,135.61,3.31]
[1765214781915,5.65978901,135.63,135.61,3.31]
[1765214782213,72.95781675,135.66,135.61,3.31]
[1765214782422,5.65880851,135.65,135.61,3.31]
[1765214782618,5.65880851,135.64,135.62,0.04838091]
[1765214782826,0.05356125,135.64,135.63,3.31]
[1765214783126,5.70602197,135.64,135.63,3.31]
[1765214785331,0.05356125,135.64,135.63,3.31]
[1765214793525,0.05356125,135.64,135.62,0.04838091]
[1765214793927,5.65756603,135.63,135.62,0.04838091]
[1765214794435,12.29336603,135.63,135.62,0.04838091]
[1765214794636,5.65756603,135.63,135.57,3.31]
[1765214794830,5.65756603,135.62,135.57,3.31]
[1765214795034,5.65756603,135.61,135.57,3.31]
[1765214795330,5.65756603,135.6,135.57,3.31]
[1765214795524,11.95291656,135.63,135.57,3.36280068]
[1765214795525,6.6369,135.61,135.57,3.36280068]
[1765214795735,5.7148189,135.6,135.57,3.36280068]
[1765214795934,5.66194848,135.59,135.51,3.31]
[1765214796131,114.08849554,135.58,135.51,3.31]
[1765214796336,5.66194848,135.57,135.51,3.31]
[1765214796528,5.66194848,135.56,135.51,3.31]
[1765214796724,5.66194848,135.55,135.46,3.31]
[1765214796929,108.96014848,135.54,135.46,3.31]
[1765214797231,0.05456587,135.52,135.49,0.04701864]
[1765214797439,5.64991954,135.51,135.49,0.04701864]
[1765214797634,0.05456587,135.52,135.49,0.04701864]
[1765214797938,5.64992222,135.51,135.49,0.04701864]
[1765214798136,6.69586587,135.52,135.49,0.04701864]
[1765214798438,0.05456587,135.52,135.49,3.35701864]
[1765214799139,5.70053826,135.52,135.49,3.35701864]
[1765214799440,0.05456587,135.52,135.49,3.35701864]
[1765214800333,0.00456587,135.52,135.49,3.35701864]
[1765214800840,5.64169777,135.57,135.51,3.31]
[1765214801144,61.0,135.59,135.51,3.31]
[1765214801445,5.65981047,135.61,135.56,3.31]
[1765214801631,5.65981047,135.62,135.56,3.31]
[1765214801831,6.6361,135.63,135.56,3.31]
[1765214801832,0.04993649,135.6,135.58,0.04706]
[1765214802231,0.04993649,135.6,135.58,3.35706]
[1765214804033,6.7911695,135.67,135.59,3.31]
[1765214804240,5.66232426,135.66,135.59,3.31]
[1765214804435,5.66232426,135.65,135.59,3.31]
[1765214804631,5.66232426,135.64,135.59,3.31]
[1765214804834,5.66232426,135.66,135.59,3.31]
[1765214805028,5.66232426,135.65,135.61,0.04939219]
[1765214805237,5.7115511,135.64,135.61,3.35939219]
[1765214805440,0.04922684,135.64,135.61,3.35939219]
[1765214805937,5.7115511,135.64,135.61,3.35939219]
[1765214806139,0.04922684,135.64,135.61,3.35939219]
[1765214811542,0.04922684,135.64,135.62,3.23]
[1765214816149,0.04922684,135.64,135.63,3.23]
[1765214816844,5.66935391,135.69,135.64,3.23]
[1765214817047,67.6325,135.7,135.64,3.23]
[1765214817239,5.667113,135.69,135.64,3.23]
[1765214817440,67.6325,135.7,135.64,3.23]
[1765214817640,0.04911911,135.68,135.66,3.28663773]
[1765214818542,0.04911911,135.68,135.67,3.23]
[1765214820849,5.6681411,135.72,135.67,3.23]
[1765214821156,5.6681411,135.73,135.68,3.23]
[1765214821341,5.6681411,135.74,135.68,3.23]
[1765214821541,61.0,135.75,135.68,3.23]
[1765214821741,66.6681411,135.75,135.68,3.23]
[1765214821938,0.05519621,135.73,135.71,3.23]
[1765214822747,0.05519621,135.73,135.7,0.05314122]
[1765214823145,6.6315,135.72,135.7,0.05314122]
[1765214825641,61.05519621,135.73,135.7,3.28314122]
[1765214828064,0.05519621,135.73,135.72,3.06]
[1765214829272,68.35684349,135.79,135.72,3.06]
[1765214829466,68.35684349,135.79,135.72,9.691]
[1765214829671,62.7,135.79,135.73,3.06]
[1765214830165,0.05230286,135.77,135.75,3.11101333]
[1765214835675,0.05230286,135.77,135.75,0.05101333]
[1765214837377,0.05230286,135.77,135.72,3.06]
[1765214837578,0.05230286,135.77,135.69,72.3726]
[1765214837770,0.05230286,135.77,135.7,3.06]
[1765214838370,6.6308,135.74,135.72,0.0533476]
[1765214838576,6.67904287,135.74,135.72,0.05480518]
[1765214841376,0.04824287,135.74,135.72,3.27480518]
[1765214844885,0.04824287,135.74,135.73,3.22]
[1765214846273,67.77268603,135.78,135.74,3.22]
[1765214846580,5.67268402,135.77,135.74,3.22]
[1765214846882,5.67268402,135.76,135.74,3.22]
[1765214847082,5.67268402,135.75,135.74,3.22]
[1765214847581,5.67268402,135.75,135.74,9.8503]
[1765214849783,0.05635924,135.76,135.75,3.22]
[1765214850083,5.73793216,135.76,135.75,3.22]
[1765214856288,5.73793216,135.76,135.74,3.22]
[1765214856582,5.68157292,135.75,135.74,3.22]
[1765214857689,5.68157292,135.75,135.73,3.22]
[1765214857884,0.05635924,135.76,135.73,3.22]
[1765214858085,5.69020576,135.75,135.73,3.22]
[1765214858284,0.05635924,135.76,135.73,3.22]
[1765214858484,5.69460898,135.75,135.73,3.22]
[1765214858687,0.05635924,135.76,135.73,3.22]
[1765214858886,5.69498538,135.75,135.73,3.22]
[1765214859086,0.05635924,135.76,135.73,3.22]
[1765214859284,5.69583646,135.75,135.73,3.22]
[1765214859487,0.05635924,135.76,135.73,3.22]
[1765214859791,5.69851229,135.75,135.73,3.22]
[1765214859977,0.05635924,135.76,135.73,3.22]
[1765214860181,5.69863302,135.75,135.73,3.22]
[1765214860391,0.05635924,135.76,135.73,3.22]
[1765214860590,5.7019048,135.75,135.73,3.22]
[1765214860790,0.05635924,135.76,135.73,3.22]
[1765214860987,5.67014439,135.75,135.73,3.22]
[1765214861188,0.05635924,135.76,135.73,3.22]
[1765214861385,5.67325866,135.75,135.73,3.22]
[1765214861690,0.05635924,135.76,135.73,3.22]
[1765214861887,5.67326224,135.75,135.73,3.22]
[1765214862089,0.05635924,135.76,135.73,3.22]
[1765214862395,5.67705854,135.75,135.73,3.22]
[1765214862690,0.05635924,135.76,135.73,3.22]
[1765214862890,5.67705854,135.75,135.73,3.22]
[1765214863086,0.05635924,135.76,135.73,3.22]
[1765214863286,5.67755464,135.75,135.73,3.22]
[1765214863591,0.05635924,135.76,135.73,3.22]
[1765214863892,5.68018997,135.75,135.74,3.22]
[1765214867295,0.05635924,135.76,135.74,9.8504]
[1765214867797,0.05635924,135.76,135.75,3.22]
[1765214867996,5.73647885,135.76,135.75,3.22]
[1765214877394,5.73647885,135.76,135.73,3.28]
[1765214877695,0.05635924,135.76,135.73,3.28]
[1765214878098,0.05635924,135.76,135.75,3.28]
[1765214878300,6.77268603,135.81,135.77,3.28]
[1765214878501,5.68369225,135.8,135.77,3.28]
[1765214878705,5.68369706,135.79,135.77,3.28]
[1765214878902,14.88301432,135.82,135.79,3.28]
[1765214879200,3.03768286,135.8,135.79,0.05260853]
[1765214879393,8.72104255,135.8,135.79,0.05260853]
[1765214879599,5.68335969,135.8,135.79,0.05260853]
[1765214881307,5.68335969,135.8,135.79,3.06260853]
[1765214882205,0.05475802,135.82,135.81,3.01]
[1765214884510,3.03768286,135.86,135.83,3.01]
[1765214884710,62.64,135.87,135.83,3.01]
[1765214885296,9.66138286,135.88,135.83,3.01]
[1765214885607,0.05167122,135.87,135.84,0.04751229]
[1765214886405,3.08935408,135.87,135.84,0.04751229]
[1765214887602,9.71345408,135.87,135.84,0.04751229]
[1765214888407,3.08935408,135.87,135.84,3.05751229]
[1765214890514,3.08935408,135.87,135.84,0.04751229]
[1765214891810,3.03768286,135.85,135.84,0.04751229]
[1765214894316,8.65423785,135.85,135.84,0.04751229]
[1765214895613,5.61655499,135.85,135.84,0.04751229]
[1765214895816,5.61655499,135.86,135.84,0.04751229]
[1765214896013,0.05167122,135.87,135.84,3.05751229]
[1765214896317,0.05167122,135.87,135.85,3.01]
[1765214899304,5.61426435,135.9,135.87,3.05]
[1765214899509,5.61426435,135.91,135.87,3.05]
[1765214899714,5.61426435,135.9,135.87,3.05]
[1765214899911,5.61426435,135.92,135.87,3.05]
[1765214900112,5.61426435,135.91,135.88,3.05]
[1765214900319,0.05564447,135.91,135.88,3.09908388]
[1765214901406,0.05564447,135.91,135.88,0.04908388]
[1765214903021,6.67784447,135.91,135.88,0.04908388]
[1765214903813,0.05564447,135.91,135.88,0.04908388]
[1765214904518,5.66990882,135.91,135.88,0.04908388]
[1765214904720,4.739952,135.89,135.88,0.04908388]
[1765214905113,10.34034855,135.89,135.88,0.04908388]
[1765214905316,4.739952,135.89,135.88,0.04908388]
[1765214905521,10.34034855,135.89,135.88,0.04908388]
[1765214905709,4.739952,135.89,135.88,0.04908388]
[1765214905918,10.34034855,135.89,135.88,0.04908388]
[1765214906208,4.739952,135.89,135.88,0.04908388]
[1765214906413,10.34034855,135.89,135.88,0.04908388]
[1765214906613,4.739952,135.89,135.88,0.04908388]
[1765214906812,10.34034855,135.89,135.88,0.04908388]
[1765214907010,10.34034855,135.89,135.83,6.626]
[1765214907209,5.60039655,135.88,135.83,9.676]
[1765214908026,5.60039655,135.88,135.84,0.05530802]
[1765214908027,0.05425487,135.87,135.84,0.05530802]
[1765214908330,0.05425487,135.87,135.84,3.10530802]
[1765214911922,6.67835487,135.87,135.84,3.10530802]
[1765214912124,6.67835487,135.87,135.84,0.05530802]
[1765214912730,6.67835487,135.87,135.84,3.10530802]
[1765214913437,5.60971753,135.86,135.84,3.10530802]
[1765214913938,6.67835487,135.87,135.84,3.10530802]
[1765214914132,0.05425487,135.87,135.84,3.10530802]
[1765214915335,5.61300783,135.86,135.84,3.10530802]
[1765214915535,0.05425487,135.87,135.84,3.10530802]
[1765214915741,5.61242521,135.86,135.84,3.10530802]
[1765214915933,0.05425487,135.87,135.84,3.10530802]
[1765214916130,5.61242521,135.86,135.84,3.10530802]
[1765214916330,0.05425487,135.87,135.84,3.10530802]
[1765214916533,5.61442816,135.86,135.84,3.10530802]
[1765214916738,0.05425487,135.87,135.84,3.10530802]
[1765214916938,5.61445474,135.86,135.84,3.10530802]
[1765214917138,0.05425487,135.87,135.84,3.10530802]
[1765214917338,5.61608033,135.86,135.84,3.10530802]
[1765214917544,0.05425487,135.87,135.84,3.10530802]
[1765214917742,5.61658381,135.86,135.84,3.10530802]